fUSD/lending_fUSD_20241224
["ID","MTS","AMOUNT","RATE_DAILY","PERIOD"]
[346538996,1735057832334,-1246.58538622,0.0001098,2]
[346538997,1735057832346,-1228.47,0.0001098,2]
[346538998,1735057832360,-525.46633825,0.0001098,2]
[346538999,1735057832376,-1487.2089524,0.0001098,2]
[346539000,1735057832388,-4764.77480111,0.0001098,2]
[346539001,1735057832401,-2098.38382811,0.0001098,2]
[346539002,1735057832412,-250.0,0.00011051,2]
[346539003,1735057832423,-2549.1,0.00011075,2]
[346539004,1735057832433,-163.05,0.0001109,2]
[346539005,1735057832442,-8592.83557615,0.00011109,2]
[346539006,1735057832454,-15307.16442385,0.00011109,2]
[346539007,1735057832465,-400.0,0.00011111,2]
[346539008,1735057832476,-594.02,0.00011273,2]
[346539009,1735057832486,-565.75,0.00011278,2]
[346539010,1735057832497,-200.0,0.00011278,2]
[346539011,1735057832508,-1000.0,0.00011369,2]
[346539012,1735057832520,-722.85,0.00011377,2]
[346539013,1735057832530,-862.16,0.00011379,2]
[346539014,1735057832540,-176.54,0.00011381,2]
[346539015,1735057832551,-250.0,0.00011381,2]
[346539016,1735057832561,-196.36,0.0001139,2]
[346539017,1735057832572,-4820.62,0.0001139,2]
[346539018,1735057832582,-250.0,0.0001141,2]
[346539019,1735057832592,-1149.98,0.00011422,2]
[346539020,1735057832602,-738.27,0.00011438,2]
[346539021,1735057832612,-164.47,0.00011439,2]
[346539022,1735057832622,-2751.0,0.00011507,2]
[346539023,1735057832632,-150.0,0.00011508,2]
[346539024,1735057832642,-162.72,0.00011716,2]
[346539025,1735057832652,-31880.0,0.00011788,2]
[346539026,1735057832662,-196.99570568,0.000119,2]
[346539027,1735057832672,-1100.0,0.000119,4]
[346539028,1735057832682,-633.0,0.00012,2]
[346539029,1735057832693,-150.419,0.00012,2]
[346539030,1735057832702,-566.099,0.00012,2]
[346539031,1735057832713,-1899.0,0.00012,2]
[346539032,1735057832722,-1256.0,0.00012,2]
[346539033,1735057832732,-987.636,0.00012,2]
[346539034,1735057832743,-818.0,0.00012,2]
[346539035,1735057832753,-3771.0,0.00012,2]
[346539036,1735057832763,-536.0,0.00012,2]
[346539037,1735057832773,-3683.0,0.00012,2]
[346539038,1735057832782,-1101.0,0.00012,2]
[346539039,1735057832792,-2011.0,0.00012,2]
[346539040,1735057832802,-150.0,0.00012,2]
[346539041,1735057832811,-3888.0,0.00012,2]
[346539042,1735057832823,-6727.6568782,0.00012,2]
[346539043,1735057832835,-1627.05899772,0.00012,2]
[346539044,1735057832864,-360.04704331,0.00012,2]
[346539045,1735057832876,-2643.39459498,0.00012,2]
[346539046,1735057832887,-1099.5,0.00012,2]
[346539047,1735057832899,-405.02194882,0.00012,2]
[346539048,1735057832925,-7137.32053697,0.00012,2]
[346539049,1735057832935,-2200.0,0.00012,4]
[346539050,1735057832945,-628.61,0.0001204,2]
[346539051,1735057832954,-628.61,0.00012043,2]
[346539052,1735057832963,-628.61,0.00012046,2]
[346539053,1735057832973,-628.61,0.00012049,2]
[346539054,1735057832982,-628.61,0.00012052,2]
[346539055,1735057832992,-628.61,0.00012055,2]
[346539056,1735057833001,-628.61,0.00012059,2]
[346539057,1735057833011,-628.61,0.00012062,2]
[346539058,1735057833021,-628.61,0.00012065,2]
[346539059,1735057833031,-628.61,0.00012068,2]
[346539060,1735057833041,-628.61,0.00012071,2]
[346539061,1735057833051,-628.61,0.00012074,2]
[346539062,1735057833061,-628.61,0.00012078,2]
[346539063,1735057833074,-628.61,0.00012081,2]
[346539064,1735057833084,-628.61,0.00012084,2]
[346539065,1735057833095,-628.61,0.00012087,2]
[346539066,1735057833106,-628.61,0.0001209,2]
[346539067,1735057833116,-628.61,0.00012094,2]
[346539068,1735057833126,-628.61,0.00012097,2]
[346539069,1735057833137,-628.61,0.000121,2]
[346539070,1735057833147,-3400.0,0.000121,4]
[346539071,1735057833158,-2032.394,0.000122,2]
[346539072,1735057833171,-4500.0,0.000122,4]
[346539073,1735057833181,-5700.0,0.000123,4]
[346539074,1735057833191,-26807.48,0.00012329,2]
[346539075,1735057833202,-677.069,0.0001235,2]
[346539076,1735057833212,-1100.0,0.000124,4]
[346539077,1735057833223,-1100.0,0.000125,4]
[346539078,1735057833233,-1100.0,0.000126,4]
[346539079,1735057833244,-429.04098534,0.00012613,2]
[346539080,1735057833254,-151.0,0.00012636,2]
[346539081,1735057833265,-2500.0,0.00012667,2]
[346539082,1735057833276,-1100.0,0.000127,4]
[346539083,1735057833287,-151.0,0.00012736,2]
[346539084,1735057833298,-1000.0,0.00012791,2]
[346539085,1735057833309,-17149.27469031,0.000128,2]
[346539086,1735057833324,-6187.99,0.000128,2]
[346539087,1735057833337,-1167.461,0.000128,2]
[346539088,1735057833348,-1605.0,0.000128,4]
[346539089,1735057833359,-1084.23110169,0.000128,2]
[346539090,1735057833369,-862.16,0.00012801,2]
[346539091,1735057833380,-1084.23110168,0.00012811,2]
[346539092,1735057833390,-1084.23110168,0.00012822,2]
[346539093,1735057833400,-1084.23110168,0.00012833,2]
[346539094,1735057833411,-151.0,0.00012836,2]
[346539095,1735057833422,-1084.23110168,0.00012844,2]
[346539096,1735057833432,-1084.23110168,0.00012856,2]
[346539097,1735057833444,-1084.23110168,0.00012867,2]
[346539098,1735057833454,-3000.0,0.0001287,2]
[346539099,1735057833465,-800.0,0.00012876,2]
[346539100,1735057833475,-1084.23110168,0.00012878,2]
[346539101,1735057833485,-1084.23110168,0.00012889,2]
[346539102,1735057833495,-938.9891,0.0001289,2]
[346539103,1735057833505,-200.0,0.00012895,2]
[346539104,1735057833515,-504.25916683,0.00012899,2]
[346539105,1735057833527,-306.72078791,0.00012899,2]
[346539106,1735057833537,-500.0,0.00012899,2]
[346539107,1735057833547,-531.98046405,0.00012899,2]
[346539108,1735057833557,-500.0,0.00012899,2]
[346539109,1735057833567,-500.0,0.00012899,2]
[346539110,1735057833579,-500.0,0.00012899,2]
[346539111,1735057833588,-578.07385568,0.00012899,2]
[346539112,1735057833598,-189.8357,0.000129,2]
[346539113,1735057833608,-500.0,0.000129,2]
[346539114,1735057833617,-65381.35509199,0.000129,2]
[346539115,1735057833626,-148231.28228855,0.000129,2]
[346539116,1735057833636,-4136.22997435,0.000129,2]
[346539117,1735057833645,-148564.25630186,0.000129,2]
[346539118,1735057833655,-157.98659433,0.000129,2]
[346539119,1735057833664,-185.16739718,0.000129,2]
[346539120,1735057833674,-1084.23110168,0.000129,2]
[346539121,1735057833683,-160.19011663,0.000129,2]
[346539122,1735057833692,-710.80744353,0.000129,2]
[346539123,1735057833702,-840.35956476,0.000129,2]
[346539124,1735057833711,-200.0,0.00012935,2]
[346539125,1735057833720,-151.0,0.00012936,2]
[346539126,1735057833729,-500.0,0.00012973,2]
[346539127,1735057833739,-500.0,0.00012973,2]
[346539128,1735057833748,-500.0,0.00012973,2]
[346539129,1735057833757,-500.0,0.00012983,2]
[346539130,1735057833766,-500.0,0.00012983,2]
[346539131,1735057833775,-254.0408088,0.0001299,2]
[346539132,1735057833784,-2000.0,0.0001299,2]
[346539133,1735057833794,-43918.06234478,0.00012999,2]
[346539134,1735057833803,-841173.0923471,0.00012999,2]
[346539187,1735057837987,-635.0,0.00012,2]
[346539188,1735057837997,-1265.0,0.00012,2]
[346539189,1735057838007,-77695.84804833,0.00012999,2]
[346539190,1735057838045,-545.69999993,0.00012999,2]
[346539191,1735057838057,-302.5407008,0.00012999,2]
[346539192,1735057838069,-344.1324579,0.00012999,2]
[346539193,1735057838233,-9990.0,0.00012999,2]
[346539194,1735057838247,-179648.16992361,0.00012999,2]
[346539195,1735057838333,-966.95865689,0.00012999,2]
[346539369,1735057840139,-5620.0,0.00012999,2]
[346539378,1735057840223,-2955.57,0.00012999,2]
[346539383,1735057840256,-4692.7587,0.00012999,2]
[346539385,1735057840267,-24694.35274747,0.00012999,2]
[346539390,1735057840370,-574.68795249,0.00012999,2]
[346539391,1735057840390,-799.4,0.00012999,2]
[346539392,1735057840401,-261.43666041,0.00012999,2]
[346539419,1735057840688,-122452.82215825,0.00012999,2]
[346539422,1735057840699,-3639.0987448,0.00012999,2]
[346539424,1735057840710,-2289.6,0.00012999,2]
[346539426,1735057840721,-367.03000001,0.00012999,2]
[346539434,1735057840766,-327.54345663,0.00012999,2]
[346539436,1735057840778,-20307.93305241,0.00012999,2]
[346539539,1735057843134,-1170.0,0.00012,2]
[346539540,1735057843144,-43.45,0.00012999,2]
[346539541,1735057843155,-865.77127835,0.00012999,2]
[346539542,1735057843170,-1759.35999998,0.00012999,2]
[346539543,1735057843182,-2124.4700145,0.00012999,2]
[346539544,1735057843193,-2429.625,0.00012999,2]
[346539545,1735057843204,-2422.0,0.00012999,2]
[346539546,1735057843278,-13750.46807829,0.00012999,2]
[346539547,1735057843347,-287.0297991,0.00012999,2]
[346539548,1735057843383,-352.55387268,0.00012999,2]
[346539556,1735057846127,-1526.43607782,0.00012999,2]
[346539557,1735057846139,-4020.00006389,0.00012999,2]
[346539558,1735057846151,-2291.851,0.00012999,2]
[346539559,1735057846289,-1056.34317,0.00012999,2]
[346539560,1735057846349,-285600.45335244,0.00012999,2]
[346539561,1735057846361,-124527.78196949,0.00012999,2]
[346539562,1735057846372,-687845.60405031,0.00012999,2]
[346539563,1735057846413,-340.20962,0.00012999,2]
[346539564,1735057846483,-545.54747246,0.00012999,2]
[346539565,1735057846497,-59174.89347522,0.00012999,2]
[346539566,1735057846544,-39521.42907183,0.00012999,2]
[346539597,1735058771516,152.81,0.00016658,30]
[346539620,1735059032294,-361.67562588,9.782e-05,2]
[346539621,1735059032306,-383.46181013,9.782e-05,2]
[346539622,1735059032316,-275.58739689,9.782e-05,2]
[346539623,1735059032526,-14.2551671,9.782e-05,2]
[346539624,1735059032540,-308.65,0.00010137,2]
[346539625,1735059032551,-171.48,0.00010137,2]
[346539626,1735059032561,-1206.29,0.00011778,2]
[346539627,1735059032571,-250.0,0.00011815,2]
[346539628,1735059032581,-303.28,0.00011951,3]
[346539629,1735059032591,-400.0,0.0001197,2]
[346539630,1735059032600,-971.07,0.00011999,2]
[346539632,1735059032610,-499.87,0.00012,2]
[346539634,1735059032620,-1034.98,0.00012046,2]
[346539636,1735059032630,-282.87,0.0001208,2]
[346539637,1735059032640,-1541.08,0.000121,2]
[346539638,1735059032650,-451.29,0.000121,2]
[346539639,1735059032659,-150.0,0.0001211,2]
[346539641,1735059032669,-1000.0,0.00012135,2]
[346539643,1735059032679,-250.0,0.0001214,2]
[346539645,1735059032688,-140.66504248,0.00012199,2]
[346539648,1735059032702,-359.33495752,0.00012199,2]
[346539650,1735059032712,-1265.0,0.000122,2]
[346539652,1735059032721,-2011.0,0.000122,2]
[346539654,1735059032731,-150.0,0.000122,2]
[346539656,1735059032740,-633.0,0.000122,2]
[346539658,1735059032750,-565.0,0.000122,2]
[346539660,1735059032759,-1899.0,0.000122,2]
[346539662,1735059032769,-818.0,0.000122,2]
[346539663,1735059032778,-923.0,0.000122,2]
[346539666,1735059032789,-1256.0,0.000122,2]
[346539668,1735059032801,-344.90752512,0.000122,2]
[346539670,1735059032812,-436.0,0.000122,2]
[346539673,1735059032833,-2990.09247488,0.000122,2]
[346539674,1735059032843,-536.0,0.000122,2]
[346539675,1735059032853,-3683.0,0.000122,2]
[346539676,1735059032862,-150.0,0.000122,2]
[346539677,1735059032872,-1170.0,0.000122,2]
[346539678,1735059032881,-228.0,0.000122,2]
[346539679,1735059032890,-167.0,0.000122,2]
[346539680,1735059032899,-798.15381122,0.000122,2]
[346539681,1735059032929,-8795.84618878,0.000122,2]
[346539682,1735059032939,-2184.9988855,0.000122,2]
[346539683,1735059032968,-1703.0011145,0.000122,2]
[346539684,1735059032977,-150.0,0.000122,2]
[346539685,1735059032987,-957.22,0.00012223,2]
[346539686,1735059032997,-413.25063398,0.00012229,2]
[346539687,1735059033009,-404.72266602,0.00012229,2]
[346539688,1735059033019,-190.19233398,0.0001235,2]
[346539697,1735059038231,-250.0,0.000122,2]
[346539698,1735059038240,-458.84766602,0.0001235,2]
[346539699,1735059038250,-985.52853398,0.000125,5]
[346539700,1735059038276,-1.47146602,0.000125,5]
[346539701,1735059038287,-429.04098534,0.00012763,2]
[346539702,1735059038297,-787.212,0.000128,2]
[346539703,1735059038307,-1067.082,0.00012805,2]
[346539704,1735059038316,-6335.75535306,0.00012805,2]
[346539705,1735059038326,-800.0,0.00012876,2]
[346539706,1735059038335,-200.0,0.00012896,2]
[346539707,1735059038345,-11757.65753203,0.00012899,2]
[346539708,1735059038354,-11757.65753199,0.00012899,2]
[346539709,1735059038363,-11757.65753199,0.00012899,2]
[346539710,1735059038373,-11757.65753199,0.00012899,2]
[346539711,1735059038383,-11757.65753199,0.00012899,2]
[346539712,1735059038392,-11757.65753199,0.000129,2]
[346539713,1735059038402,-11757.65753199,0.000129,2]
[346539714,1735059038411,-11757.65753199,0.000129,2]
[346539715,1735059038420,-11757.65753199,0.000129,2]
[346539716,1735059038430,-11757.65753199,0.000129,2]
[346539717,1735059038439,-315.3675734,0.000129,2]
[346539718,1735059038448,-713.8590805,0.000129,2]
[346539719,1735059038458,-986.82606466,0.000129,2]
[346539720,1735059038467,-300.7,0.00012911,2]
[346539721,1735059038476,-500.0,0.00012973,2]
[346539722,1735059038486,-500.0,0.00012973,2]
[346539723,1735059038495,-500.0,0.00012973,2]
[346539724,1735059038505,-4566.51192014,0.0001299,2]
[346539725,1735059038514,-66679.82622452,0.00012997,2]
[346539726,1735059038529,-413.53372746,0.00012997,2]
[346539727,1735059038540,-494.72755185,0.00012997,2]
[346539728,1735059038570,-591.2369378,0.00012997,2]
[346539729,1735059038590,-918.92604844,0.00012997,2]
[346539731,1735059038601,-1020.48441078,0.00012997,2]
[346539732,1735059038637,-547.74999871,0.00012997,2]
[346539827,1735059040733,-810.97558558,0.00012997,2]
[346539828,1735059040745,-1453.7,0.00012997,2]
[346539829,1735059040773,-1803.82920904,0.00012997,2]
[346539830,1735059040901,-976.53583,0.00012997,2]
[346539831,1735059040913,-1627.4,0.00012997,2]
[346539833,1735059040941,-3170.32655397,0.00012997,2]
[346539834,1735059040983,-34615.22764328,0.00012997,2]
[346539835,1735059040993,-314.99232942,0.00012999,2]
[346539836,1735059041003,-1608.46175252,0.00012999,2]
[346539837,1735059041012,-200.0,0.00012999,2]
[346539838,1735059041022,-2026.53878341,0.00012999,2]
[346539863,1735059043230,-973.46121659,0.00012999,2]
[346539865,1735059043240,-9136.613722,0.00012999,2]
[346539867,1735059043288,-4834.5089715,0.00012999,2]
[346539868,1735059043302,-1697.85,0.00012999,2]
[346539869,1735059043314,-6290.05847889,0.00012999,2]
[346539870,1735059043324,-125789.69984577,0.00012999,2]
[346539871,1735059043335,-99782.45074324,0.00012999,2]
[346539872,1735059043371,-16317.0032043,0.00012999,2]
[346539873,1735059043404,-682.65982,0.00012999,2]
[346539874,1735059043416,-789.1538285,0.00012999,2]
[346539875,1735059043427,-606.78,0.00012999,2]
[346539876,1735059043516,-19627.23350529,0.00012999,2]
[346539877,1735059043529,-9163.95578748,0.00012999,2]
[346539932,1735059046253,-11018.42,0.00012999,2]
[346539933,1735059046341,-27902.16595465,0.00012999,2]
[346539934,1735059046364,-225.89144572,0.00012999,2]
[346539935,1735059046401,-1312.499999,0.00012999,2]
[346539936,1735059046412,-4012.43031184,0.00012999,2]
[346539937,1735059046424,-24597.23421181,0.00012999,2]
[346539938,1735059046515,-435.54524997,0.00012999,2]
[346540171,1735059216345,1000.0,0.00013698,30]
[346540173,1735059658384,152.81,0.00016658,30]
[346540174,1735059701283,12698.0613957,0.00019,30]
[346540175,1735059917834,9000.0,0.00019,30]
[346540227,1735060232434,-526.56500423,9.988e-05,2]
[346540231,1735060232547,-437.16499577,9.988e-05,2]
[346540232,1735060232557,-333.34,0.00010137,2]
[346540233,1735060232567,-1000.0,0.00011838,2]
[346540234,1735060232577,-500.0,0.00011945,2]
[346540235,1735060232587,-250.0,0.00011971,2]
[346540236,1735060232597,-500.0,0.00012,2]
[346540237,1735060232606,-400.0,0.00012065,2]
[346540238,1735060232615,-517.29,0.00012102,2]
[346540239,1735060232625,-2000.0,0.00012128,2]
[346540240,1735060232634,-179.846,0.000122,2]
[346540241,1735060232645,-150.0,0.000122,2]
[346540242,1735060232655,-150.0,0.000122,2]
[346540243,1735060232664,-1265.0,0.000122,2]
[346540244,1735060232679,-2011.0,0.000122,2]
[346540245,1735060232688,-565.0,0.000122,2]
[346540246,1735060232697,-150.0,0.000122,2]
[346540247,1735060232706,-633.0,0.000122,2]
[346540248,1735060232716,-1899.0,0.000122,2]
[346540249,1735060232726,-818.0,0.000122,2]
[346540250,1735060232737,-1256.0,0.000122,2]
[346540251,1735060232746,-923.0,0.000122,2]
[346540252,1735060232756,-3771.0,0.000122,2]
[346540253,1735060232765,-536.0,0.000122,2]
[346540254,1735060232775,-3683.0,0.000122,2]
[346540255,1735060232784,-1170.0,0.000122,2]
[346540256,1735060232793,-3888.0,0.000122,2]
[346540257,1735060232802,-150.0,0.000122,2]
[346540258,1735060232812,-2934.765,0.000122,2]
[346540259,1735060232822,-3893.01,0.00012252,2]
[346540260,1735060232831,-963.73,0.00012252,2]
[346540261,1735060232841,-282.87,0.00012284,2]
[346540262,1735060232851,-437.17,0.000123,2]
[346540263,1735060232860,-959.64,0.000123,2]
[346540264,1735060232869,-621.676,0.0001235,2]
[346540265,1735060232880,-429.04098534,0.00012743,2]
[346540266,1735060232891,-3858.74934708,0.00012805,2]
[346540267,1735060232901,-9327.93482855,0.0001288,2]
[346540268,1735060232911,-1465.008,0.0001288,2]
[346540269,1735060232921,-164.687,0.0001288,2]
[346540270,1735060232932,-17841.49740297,0.000129,2]
[346540271,1735060232942,-360.04637129,0.000129,2]
[346540272,1735060232952,-786.10344762,0.000129,2]
[346540273,1735060232964,-158.19454954,0.000129,2]
[346540274,1735060232974,-500.0,0.00012973,2]
[346540275,1735060232985,-31691.22801397,0.0001298,2]
[346540276,1735060232995,-500.0,0.00012983,2]
[346540277,1735060233004,-500.0,0.00012983,2]
[346540278,1735060233014,-5000.0,0.00012987,3]
[346540279,1735060233024,-16068.61940325,0.0001299,2]
[346540280,1735060233034,-3765.9800378,0.00012995,2]
[346540281,1735060233044,-1826.9977766,0.00012995,2]
[346540282,1735060233055,-5833.8171885,0.00012995,2]
[346540283,1735060233064,-1407.2148,0.00012999,2]
[346540284,1735060233074,-500.0,0.00012999,2]
[346540285,1735060233083,-13395.69527831,0.00013,2]
[346540286,1735060233093,-1000.0,0.00013,2]
[346540287,1735060233103,-1000.0,0.00013,3]
[346540288,1735060233112,-1000.0,0.00013,4]
[346540289,1735060233122,-1000.0,0.00013,5]
[346540290,1735060233133,-1000.0,0.00013,6]
[346540291,1735060233142,-79465.92754388,0.00013,2]
[346540292,1735060235181,-2007.43321296,0.00013,2]
[346540293,1735060235192,-1598.54784942,0.00013,2]
[346540295,1735060238403,-1000.0,0.00013,2]
[346540296,1735060238461,-2123.30950307,0.00013,2]
[346540297,1735060238521,-1335.575,0.00013,2]
[346540298,1735060238532,-557.91029838,0.00013,2]
[346540299,1735060238633,-12459.40999402,0.00013,2]
[346540300,1735060238694,-400.97885,0.00013,2]
[346540328,1735060240402,-252.339999,0.00013,2]
[346540329,1735060240458,-518.4195136,0.00013,2]
[346540330,1735060240538,-349.62500002,0.00013,2]
[346540331,1735060240550,-4438.55156236,0.00013,2]
[346540363,1735060243404,-2943.1902501,0.00013,2]
[346540364,1735060243460,-638.75796375,0.00013,2]
[346540365,1735060243471,-900.07497384,0.00013,2]
[346540366,1735060243483,-2313.9666447,0.00013,2]
[346540367,1735060243495,-973.5406171,0.00013,2]
[346540368,1735060243507,-1526.4593829,0.00013,2]
[346540369,1735060243518,-662.20905673,0.00013,2]
[346540370,1735060243529,-34792.65019696,0.00013,2]
[346540371,1735060243541,-46830.05422287,0.00013,2]
[346540372,1735060243564,-1087.83172208,0.00013,2]
[346540373,1735060243577,-513.3099998,0.00013,2]
[346540374,1735060243588,-3833.66097914,0.00013,2]
[346540375,1735060243600,-33782.90317993,0.00013,2]
[346540376,1735060243629,-755.82029978,0.00013,2]
[346540377,1735060243641,-948.18799716,0.00013,2]
[346540378,1735060243652,-33496.69887501,0.00013,2]
[346540379,1735060243669,-9851.1858904,0.00013,2]
[346540380,1735060243680,-1904.67629907,0.00013,2]
[346540381,1735060243692,-1047.2041221,0.00013,2]
[346540382,1735060243710,-783.70796023,0.00013,2]
[346540417,1735060245397,-4862.69878819,0.00013,2]
[346540418,1735060245410,-10851.17001,0.00013,2]
[346540422,1735060245454,-488.88,0.00013,2]
[346540432,1735060245555,-57648.2410289,0.00013,2]
[346540433,1735060245567,-4644.5224178,0.00013,2]
[346540434,1735060245579,-4654.80581678,0.00013,2]
[346540435,1735060245590,-4917.87640156,0.00013,2]
[346540436,1735060245602,-373975.32025648,0.00013,2]
[346540437,1735060245613,-1023.88349328,0.00013,2]
[346540438,1735060245629,-39014.999969,0.00013,2]
[346540439,1735060245640,-1760.00000008,0.00013,2]
[346540440,1735060245651,-1144.39744237,0.00013,2]
[346540441,1735060245663,-16584.83640185,0.00013,2]
[346540442,1735060245674,-9413.13180005,0.00013,2]
[346540443,1735060245686,-6371.44,0.00013,2]
[346540444,1735060245703,-45733.22765602,0.00013,2]
[346540445,1735060245718,-103304.57259414,0.00013,2]
[346540446,1735060245730,-2891.99427264,0.00013,2]
[346540447,1735060245780,-47679.8392,0.00013,2]
[346540448,1735060245794,-152342.6365864,0.00013,2]
[346540449,1735060245805,-19728.97029459,0.00013,2]
[346540450,1735060245841,-4000.894736,0.00013,2]
[346540467,1735060276753,7202.9,9.605e-05,2]
[346540471,1735060825655,1621.0,9e-05,2]
[346540479,1735061321412,3218.85776623,1e-05,2]
[346540496,1735061431683,-293.21,0.00010137,2]
[346540497,1735061431693,-1001.16,0.00010187,2]
[346540498,1735061431703,-163.52,0.00011977,2]
[346540499,1735061431712,-1364.03430489,0.00012008,2]
[346540500,1735061431723,-527.97733668,0.00012008,2]
[346540501,1735061434759,-3694.37835843,0.00012008,2]
[346540502,1735061434769,-597.61,0.000121,2]
[346540503,1735061434778,-250.0,0.00012187,2]
[346540504,1735061434787,-400.0,0.00012196,2]
[346540505,1735061434796,-150.0,0.000122,2]
[346540506,1735061434806,-565.0,0.000122,2]
[346540507,1735061434815,-633.0,0.000122,2]
[346540508,1735061434824,-1899.0,0.000122,2]
[346540509,1735061434833,-3771.0,0.000122,2]
[346540510,1735061434843,-1256.0,0.000122,2]
[346540511,1735061434852,-818.0,0.000122,2]
[346540512,1735061434862,-923.0,0.000122,2]
[346540513,1735061434872,-3683.0,0.000122,2]
[346540514,1735061435097,-536.0,0.000122,2]
[346540515,1735061435125,-1078.0,0.000122,2]
[346540516,1735061435135,-1265.0,0.000122,2]
[346540517,1735061435146,-2011.0,0.000122,2]
[346540518,1735061435155,-3888.0,0.000122,2]
[346540519,1735061435164,-150.0,0.000122,2]
[346540520,1735061435173,-635.0,0.000122,2]
[346540521,1735061435182,-612.137,0.0001235,2]
[346540522,1735061435192,-1001.16,0.00012451,2]
[346540523,1735061435202,-599.0,0.00012487,2]
[346540524,1735061435212,-250.0,0.00012491,2]
[346540525,1735061435222,-765.77,0.000125,2]
[346540526,1735061435232,-150.99,0.000125,2]
[346540527,1735061435243,-392.15,0.000125,2]
[346540528,1735061435252,-1410.45,0.000125,2]
[346540529,1735061435262,-3472.58,0.000125,2]
[346540530,1735061435271,-150.99,0.000125,2]
[346540531,1735061435280,-351.5,0.000125,2]
[346540532,1735061435290,-7941.57,0.000125,2]
[346540533,1735061435299,-955.27,0.000125,2]
[346540534,1735061435311,-477.12,0.000125,2]
[346540535,1735061435320,-999.99,0.000125,2]
[346540536,1735061435331,-1872.36,0.000125,2]
[346540537,1735061435342,-299.99,0.000125,2]
[346540538,1735061435353,-280.88584222,0.00012636,2]
[346540539,1735061435362,-500.0,0.00012642,2]
[346540540,1735061435372,-166.8,0.00012743,2]
[346540541,1735061435382,-1172.006,0.00012805,2]
[346540542,1735061435392,-656.6499,0.000129,2]
[346540543,1735061435402,-5000.0,0.000129,2]
[346540544,1735061435412,-24383.0599,0.000129,2]
[346540545,1735061435422,-39451.96206284,0.000129,2]
[346540546,1735061435432,-168.75207026,0.00012973,2]
[346540547,1735061435442,-729.86468,0.00012998,2]
[346540548,1735061435453,-218.2577934,0.00012998,2]
[346540549,1735061435463,-500.0,0.00012999,2]
[346540551,1735061435472,-500.0,0.00012999,2]
[346540553,1735061435482,-500.0,0.00012999,2]
[346540555,1735061435491,-160.38085622,0.00012999,2]
[346540557,1735061435501,-500.0,0.00012999,2]
[346540558,1735061435511,-500.0,0.00012999,2]
[346540559,1735061435520,-500.0,0.00012999,2]
[346540560,1735061435530,-500.0,0.00012999,2]
[346540561,1735061435540,-500.0,0.00012999,2]
[346540562,1735061435552,-6697.84763916,0.00013,2]
[346540563,1735061435562,-588962.28779364,0.00013,2]
[346540564,1735061435583,-650.38184875,0.00013,2]
[346540565,1735061435595,-929.0145636,0.00013,2]
[346540570,1735061437509,-5680.29847286,0.00013,2]
[346540571,1735061437537,-1379.3469946,0.00013,2]
[346540572,1735061437703,-352.10604785,0.00013,2]
[346540573,1735061437716,-22499.44337261,0.00013,2]
[346540574,1735061437764,-68357.03431997,0.00013,2]
[346540575,1735061437777,-464.54032843,0.00013,2]
[346540576,1735061437789,-81872.78457891,0.00013,2]
[346540577,1735061437802,-302169.16399995,0.00013,2]
[346540578,1735061437815,-13260.0,0.00013,2]
[346540579,1735061437828,-925.1,0.00013,2]
[346540580,1735061437865,-589.96673976,0.00013,2]
[346540581,1735061437878,-11658.96253,0.00013,2]
[346540582,1735061437891,-10521.0,0.00013,2]
[346540583,1735061437904,-98981.16916648,0.00013,2]